fUST/lending_fUST_20250709
["ID","MTS","AMOUNT","RATE_DAILY","PERIOD"]
[370455188,1752024670283,-460.0,0.00021643,2]
[370455190,1752024670293,-460.0,0.00021643,2]
[370455192,1752024670304,-460.0,0.00021643,2]
[370455194,1752024670314,-151.0,0.00021643,2]
[370455196,1752024670326,-151.0,0.00021643,2]
[370455198,1752024670336,-460.0,0.00021643,2]
[370455200,1752024670345,-537.49,0.00021643,2]
[370455202,1752024670355,-460.0,0.00021643,2]
[370455204,1752024670370,-460.0,0.00021643,2]
[370455206,1752024670380,-460.0,0.00021643,2]
[370455209,1752024670391,-460.0,0.00021643,2]
[370455211,1752024670401,-460.0,0.00021643,2]
[370455213,1752024670411,-460.0,0.00021643,2]
[370455215,1752024670422,-486.41,0.00021643,2]
[370455217,1752024670431,-460.0,0.00021643,2]
[370455219,1752024670441,-460.0,0.00021643,2]
[370455221,1752024670451,-460.0,0.00021643,2]
[370455223,1752024670461,-460.0,0.00021643,2]
[370455225,1752024670471,-460.0,0.00021643,2]
[370455227,1752024670481,-627.39,0.00021643,2]
[370455229,1752024670491,-460.0,0.00021643,2]
[370455230,1752024670501,-626.6,0.00021643,2]
[370455233,1752024670512,-460.0,0.00021643,2]
[370455235,1752024670521,-526.95,0.00021643,2]
[370455237,1752024670531,-361.43,0.00021643,2]
[370455239,1752024670541,-460.0,0.00021643,2]
[370455241,1752024670551,-460.0,0.00021643,2]
[370455243,1752024670561,-460.0,0.00021643,2]
[370455245,1752024670571,-460.0,0.00021643,2]
[370455247,1752024670581,-517.5,0.00021643,2]
[370455249,1752024670592,-151.0,0.00021643,2]
[370455251,1752024670602,-1266.12,0.00021643,2]
[370455253,1752024670613,-460.0,0.00021643,2]
[370455254,1752024670624,-650.33,0.00021643,2]
[370455257,1752024670634,-460.0,0.00021643,2]
[370455259,1752024670643,-984.36,0.00021643,2]
[370455261,1752024670653,-1837.66,0.00021643,2]
[370455263,1752024670663,-460.0,0.00021643,2]
[370455265,1752024670673,-1105.11,0.00021643,2]
[370455267,1752024670683,-2659.58,0.00021643,2]
[370455268,1752024670693,-460.0,0.00021643,2]
[370455271,1752024670702,-583.83,0.00021643,2]
[370455273,1752024670713,-460.0,0.00021643,2]
[370455275,1752024670723,-460.0,0.00021643,2]
[370455277,1752024670733,-653.37,0.00021643,2]
[370455278,1752024670742,-460.0,0.00021643,2]
[370455281,1752024670753,-460.0,0.00021643,2]
[370455283,1752024670762,-916.57,0.00021643,2]
[370455284,1752024670771,-369.92683422,0.00021643,2]
[370455287,1752024670783,-3869.4,0.00021643,2]
[370455289,1752024670794,-460.0,0.00021643,2]
[370455291,1752024670804,-460.0,0.00021643,2]
[370455292,1752024670816,-460.0,0.00021643,2]
[370455294,1752024670826,-460.0,0.00021643,2]
[370455296,1752024670836,-553.54715124,0.00021643,2]
[370455299,1752024670848,-575.59,0.00021643,2]
[370455301,1752024670858,-460.0,0.00021643,2]
[370455303,1752024670869,-460.0,0.00021643,2]
[370455305,1752024670879,-1799.14,0.00021643,2]
[370455307,1752024670890,-151.0,0.00021643,2]
[370455309,1752024670899,-655.47,0.00021643,2]
[370455311,1752024670910,-460.0,0.00021643,2]
[370455313,1752024670920,-460.0,0.00021643,2]
[370455315,1752024670929,-454.99788546,0.00021643,2]
[370455317,1752024670939,-460.0,0.00021643,2]
[370455318,1752024670948,-460.0,0.00021643,2]
[370455320,1752024670958,-848.32,0.00021643,2]
[370455322,1752024670967,-460.0,0.00021643,2]
[370455324,1752024670976,-2026.08,0.00021643,2]
[370455326,1752024670986,-460.0,0.00021643,2]
[370455328,1752024670997,-1189.31,0.00021643,2]
[370455330,1752024671007,-460.0,0.00021643,2]
[370455332,1752024671017,-151.0,0.00021643,2]
[370455335,1752024671028,-460.0,0.00021643,2]
[370455349,1752024671141,-1728.35,0.00021643,2]
[370455351,1752024671163,-460.0,0.00021643,2]
[370455353,1752024671173,-1151.81,0.00021643,2]
[370455355,1752024671185,-619.45,0.00021643,2]
[370455357,1752024671194,-1568.77,0.00021643,2]
[370455359,1752024671203,-460.0,0.00021643,2]
[370455361,1752024671213,-460.0,0.00021643,2]
[370455363,1752024671222,-460.0,0.00021643,2]
[370455365,1752024671231,-460.0,0.00021643,2]
[370455367,1752024671241,-1087.45,0.00021643,2]
[370455369,1752024671250,-460.0,0.00021643,2]
[370455371,1752024671260,-460.0,0.00021643,2]
[370455373,1752024671270,-460.0,0.00021643,2]
[370455375,1752024671279,-1151.74,0.00021643,2]
[370455377,1752024671288,-460.0,0.00021643,2]
[370455379,1752024671297,-1034.12,0.00021643,2]
[370455381,1752024671306,-460.0,0.00021643,2]
[370455383,1752024671316,-460.0,0.00021643,2]
[370455385,1752024671326,-460.0,0.00021643,2]
[370455387,1752024671335,-151.0,0.00021643,2]
[370455389,1752024671344,-460.0,0.00021643,2]
[370455391,1752024671354,-3362.94,0.00021643,2]
[370455393,1752024671363,-460.0,0.00021643,2]
[370455395,1752024671372,-501.77,0.00021643,2]
[370455397,1752024671381,-709.81,0.00021643,2]
[370455399,1752024671391,-460.0,0.00021643,2]
[370455400,1752024671400,-475.27349376,0.00021643,2]
[370455402,1752024671409,-52870.62389972,0.000217,2]
[370455404,1752024671419,-500.0,0.00021715,2]
[370455406,1752024671429,-5253.8255359,0.00021762,5]
[370455408,1752024671438,-500.0,0.00021811,2]
[370455410,1752024671447,-12500.0,0.00021882,2]
[370455412,1752024671457,-12500.0,0.00021891,2]
[370455414,1752024671467,-151.0,0.00021891,2]
[370455416,1752024671476,-151.0,0.00021891,2]
[370455418,1752024671486,-151.0,0.00021891,2]
[370455420,1752024671496,-217.980478,0.00021891,2]
[370455422,1752024671505,-217.980478,0.00021891,2]
[370455424,1752024671515,-313.068532,0.00021891,2]
[370455426,1752024671526,-313.068532,0.00021891,2]
[370455428,1752024671536,-12500.0,0.00021899,2]
[370455430,1752024671545,-201.9119,0.000219,2]
[370455432,1752024671555,-200.0,0.000219,4]
[370455434,1752024671565,-312.444814,0.00021907,2]
[370455436,1752024671574,-312.444814,0.00021907,2]
[370455438,1752024671583,-157.0,0.00021908,2]
[370455440,1752024671592,-157.0,0.00021908,2]
[370455442,1752024671601,-159.0,0.00021908,2]
[370455443,1752024671611,-161.76160232,0.00021908,2]
[370455445,1752024671620,-159.0,0.00021908,2]
[370455447,1752024671630,-159.0,0.00021908,2]
[370455449,1752024671639,-159.0,0.00021908,2]
[370455451,1752024671649,-159.0,0.00021908,2]
[370455453,1752024671658,-159.0,0.00021908,2]
[370455455,1752024671668,-159.0,0.00021908,2]
[370455457,1752024671677,-159.0,0.00021908,2]
[370455459,1752024671686,-159.0,0.00021908,2]
[370455461,1752024671696,-159.0,0.00021908,2]
[370455463,1752024671706,-159.0,0.00021908,2]
[370455465,1752024671716,-154.0,0.00021908,2]
[370455467,1752024671726,-169.36834577,0.00021908,2]
[370455469,1752024671736,-154.0,0.00021908,2]
[370455471,1752024671747,-154.0,0.00021908,2]
[370455472,1752024671757,-318.0,0.00021908,2]
[370455473,1752024671768,-318.0,0.00021908,2]
[370455474,1752024671778,-318.0,0.00021908,2]
[370455475,1752024671788,-318.0,0.00021908,2]
[370455476,1752024671798,-318.0,0.00021908,2]
[370455477,1752024671808,-318.0,0.00021908,2]
[370455478,1752024671818,-318.0,0.00021908,2]
[370455479,1752024671827,-318.0,0.00021908,2]
[370455480,1752024671837,-318.0,0.00021908,2]
[370455481,1752024671847,-318.0,0.00021908,2]
[370455482,1752024671857,-318.0,0.00021908,2]
[370455483,1752024671867,-318.0,0.00021908,2]
[370455484,1752024671877,-318.0,0.00021908,2]
[370455485,1752024671886,-318.0,0.00021908,2]
[370455486,1752024671896,-318.0,0.00021908,2]
[370455487,1752024671906,-318.0,0.00021908,2]
[370455488,1752024671915,-318.0,0.00021908,2]
[370455489,1752024671925,-318.0,0.00021908,2]
[370455490,1752024671934,-318.0,0.00021908,2]
[370455491,1752024671944,-318.0,0.00021908,2]
[370455492,1752024671953,-318.0,0.00021908,2]
[370455493,1752024671963,-318.0,0.00021908,2]
[370455494,1752024671973,-318.0,0.00021908,2]
[370455495,1752024671982,-318.0,0.00021908,2]
[370455497,1752024671991,-318.0,0.00021908,2]
[370455498,1752024672001,-318.0,0.00021908,2]
[370455500,1752024672011,-318.0,0.00021908,2]
[370455502,1752024672020,-318.0,0.00021908,2]
[370455503,1752024672031,-318.0,0.00021908,2]
[370455505,1752024672041,-318.0,0.00021908,2]
[370455507,1752024672051,-319.92909851,0.00021908,2]
[370455508,1752024672060,-12500.0,0.00021908,2]
[370455510,1752024672072,-685.07521208,0.0002191,2]
[370455512,1752024672082,-500.0,0.00021913,2]
[370455514,1752024672091,-151.0,0.00021916,2]
[370455516,1752024672101,-151.0,0.00021916,2]
[370455518,1752024672111,-151.0,0.00021916,2]
[370455520,1752024672121,-151.0,0.00021916,2]
[370455522,1752024672131,-178.177774,0.00021916,2]
[370455524,1752024672140,-151.0,0.00021916,2]
[370455526,1752024672150,-151.0,0.00021916,2]
[370455528,1752024672160,-151.0,0.00021916,2]
[370455529,1752024672170,-307.09616904,0.00021916,2]
[370455531,1752024672184,-151.0,0.00021916,2]
[370455533,1752024672199,-565.105017,0.00021916,2]
[370455535,1752024672209,-151.0,0.00021916,2]
[370455537,1752024672218,-565.105017,0.00021916,2]
[370455539,1752024672228,-104583.7825513,0.00021916,2]
[370455541,1752024672238,-151.0,0.00021917,2]
[370455543,1752024672247,-11269.20788777,0.00021917,2]
[370455545,1752024672257,-151.0,0.00021917,2]
[370455547,1752024672268,-151.0,0.00021917,2]
[370455549,1752024672278,-460.0,0.00021917,2]
[370455551,1752024672287,-151.0,0.00021917,2]
[370455552,1752024672298,-12500.0,0.00021917,2]
[370455554,1752024672307,-413.35,0.00021917,2]
[370455556,1752024672316,-460.0,0.00021917,2]
[370455558,1752024672326,-235.64943271,0.00021917,2]
[370455560,1752024672336,-460.0,0.00021917,2]
[370455562,1752024672345,-151.0,0.00021917,2]
[370455564,1752024672355,-537.49,0.00021917,2]
[370455566,1752024672365,-308.79,0.00021917,2]
[370455568,1752024672375,-460.0,0.00021917,2]
[370455570,1752024672388,-460.0,0.00021917,2]
[370455580,1752024672397,-486.41,0.00021917,2]
[370455583,1752024672490,-460.0,0.00021917,2]
[370455584,1752024672499,-460.0,0.00021917,2]
[370455586,1752024672508,-460.0,0.00021917,2]
[370455588,1752024672519,-579.51,0.00021917,2]
[370455590,1752024672528,-627.39,0.00021917,2]
[370455592,1752024672537,-460.0,0.00021917,2]
[370455594,1752024672547,-626.6,0.00021917,2]
[370455596,1752024672556,-460.0,0.00021917,2]
[370455598,1752024672567,-526.95,0.00021917,2]
[370455600,1752024672577,-204.51,0.00021917,2]
[370455602,1752024672587,-171.01427027,0.00021917,2]
[370455604,1752024672596,-460.0,0.00021917,2]
[370455606,1752024672607,-517.5,0.00021917,2]
[370455608,1752024672616,-408.882375,0.00021917,2]
[370455610,1752024672625,-408.882375,0.00021917,2]
[370455612,1752024672635,-151.0,0.00021917,2]
[370455614,1752024672643,-460.0,0.00021917,2]
[370455615,1752024672653,-1266.12,0.00021917,2]
[370455617,1752024672663,-650.33,0.00021917,2]
[370455619,1752024672672,-460.0,0.00021917,2]
[370455621,1752024672682,-984.36,0.00021917,2]
[370455623,1752024672691,-1837.66,0.00021917,2]
[370455625,1752024672700,-460.0,0.00021917,2]
[370455627,1752024672710,-1105.11,0.00021917,2]
[370455629,1752024672720,-2659.58,0.00021917,2]
[370455631,1752024672730,-460.0,0.00021917,2]
[370455633,1752024672739,-460.0,0.00021917,2]
[370455635,1752024672749,-460.0,0.00021917,2]
[370455637,1752024672758,-653.37,0.00021917,2]
[370455639,1752024672769,-460.0,0.00021917,2]
[370455640,1752024672779,-460.0,0.00021917,2]
[370455642,1752024672789,-916.57,0.00021917,2]
[370455644,1752024672798,-460.0,0.00021917,2]
[370455646,1752024672808,-3869.4,0.00021917,2]
[370455648,1752024672817,-460.0,0.00021917,2]
[370455650,1752024672827,-460.0,0.00021917,2]
[370455652,1752024672837,-460.0,0.00021917,2]
[370455654,1752024672846,-575.59,0.00021917,2]
[370455656,1752024672856,-460.0,0.00021917,2]
[370455658,1752024672865,-460.0,0.00021917,2]
[370455660,1752024672876,-1799.14,0.00021917,2]
[370455662,1752024672886,-151.0,0.00021917,2]
[370455663,1752024672896,-655.47,0.00021917,2]
[370455665,1752024672905,-460.0,0.00021917,2]
[370455667,1752024672914,-460.0,0.00021917,2]
[370455669,1752024672925,-460.0,0.00021917,2]
[370455671,1752024672936,-460.0,0.00021917,2]
[370455673,1752024672946,-848.32,0.00021917,2]
[370455674,1752024672956,-460.0,0.00021917,2]
[370455675,1752024672965,-2026.08,0.00021917,2]
[370455676,1752024672975,-710.73,0.00021917,2]
[370455677,1752024672984,-460.0,0.00021917,2]
[370455678,1752024672994,-710.73,0.00021917,2]
[370455679,1752024673003,-710.73,0.00021917,2]
[370455680,1752024673014,-710.73,0.00021917,2]
[370455681,1752024673023,-710.73,0.00021917,2]
[370455682,1752024673032,-710.73,0.00021917,2]
[370455683,1752024673052,-710.73,0.00021917,2]
[370455684,1752024673071,-710.73,0.00021917,2]
[370455685,1752024673090,-710.73,0.00021917,2]
[370455686,1752024673110,-710.73,0.00021917,2]
[370455687,1752024673132,-710.73,0.00021917,2]
[370455688,1752024673148,-1189.31,0.00021917,2]
[370455689,1752024673167,-460.0,0.00021917,2]
[370455690,1752024673187,-151.0,0.00021917,2]
[370455691,1752024673202,-460.0,0.00021917,2]
[370455692,1752024673221,-1728.35,0.00021917,2]
[370455693,1752024673241,-460.0,0.00021917,2]
[370455694,1752024673261,-1151.81,0.00021917,2]
[370455695,1752024673273,-619.45,0.00021917,2]
[370455696,1752024673293,-1568.77,0.00021917,2]
[370455697,1752024673309,-460.0,0.00021917,2]
[370455698,1752024673325,-460.0,0.00021917,2]
[370455699,1752024673338,-460.0,0.00021917,2]
[370455700,1752024673353,-561.30505171,0.00021917,2]
[370455701,1752024673369,-1087.45,0.00021917,2]
[370455702,1752024673385,-460.0,0.00021917,2]
[370455703,1752024673402,-460.0,0.00021917,2]
[370455704,1752024673416,-460.0,0.00021917,2]
[370455705,1752024673431,-1151.74,0.00021917,2]
[370455706,1752024673447,-460.0,0.00021917,2]
[370455707,1752024673462,-1034.12,0.00021917,2]
[370455708,1752024673477,-460.0,0.00021917,2]
[370455709,1752024673493,-551.30315408,0.00021917,2]
[370455710,1752024673509,-460.0,0.00021917,2]
[370455711,1752024673525,-151.0,0.00021917,2]
[370455712,1752024673540,-460.0,0.00021917,2]
[370455713,1752024673555,-3362.94,0.00021917,2]
[370455714,1752024673573,-460.0,0.00021917,2]
[370455715,1752024673583,-501.77,0.00021917,2]
[370455716,1752024673593,-709.81,0.00021917,2]
[370455717,1752024673604,-460.0,0.00021917,2]
[370455718,1752024673614,-151.0,0.00021918,2]
[370455719,1752024673623,-151.0,0.00021918,2]
[370455720,1752024673633,-151.0,0.00021918,2]
[370455721,1752024673642,-151.0,0.00021918,2]
[370455722,1752024673652,-150.23801384,0.00021918,2]
[370455723,1752024673662,-300.0,0.00021918,2]
[370455724,1752024673672,-200.0,0.00021918,2]
[370455725,1752024673682,-500.0,0.00021918,2]
[370455726,1752024673693,-500.0,0.00021918,2]
[370455727,1752024673703,-500.0,0.00021918,2]
[370455728,1752024673713,-493.82744858,0.00021918,2]
[370455729,1752024673723,-500.0,0.00021918,2]
[370455730,1752024673733,-500.0,0.00021918,2]
[370455731,1752024673742,-500.0,0.00021918,2]
[370455732,1752024673752,-500.0,0.00021918,2]
[370455733,1752024673763,-500.0,0.00021918,2]
[370455734,1752024673773,-500.0,0.00021918,2]
[370455735,1752024673783,-500.0,0.00021918,2]
[370455736,1752024673792,-500.0,0.00021918,2]
[370455737,1752024673802,-500.0,0.00021918,2]
[370455738,1752024673812,-500.0,0.00021918,2]
[370455739,1752024673822,-500.0,0.00021918,2]
[370455740,1752024673831,-500.0,0.00021918,2]
[370455741,1752024673840,-500.0,0.00021918,2]
[370455745,1752024674033,-500.0,0.00021918,2]
[370455748,1752024674130,-500.0,0.00021918,2]
[370455750,1752024674144,-500.0,0.00021918,2]
[370455752,1752024674155,-500.0,0.00021918,2]
[370455753,1752024674164,-500.0,0.00021918,2]
[370455755,1752024674175,-329.20767234,0.00021918,2]
[370455756,1752024674188,-500.0,0.00021918,2]
[370455757,1752024674197,-500.0,0.00021918,2]
[370455758,1752024674207,-500.0,0.00021918,2]
[370455759,1752024674216,-500.0,0.00021918,2]
[370455760,1752024674227,-500.0,0.00021918,2]
[370455761,1752024674237,-500.0,0.00021918,2]
[370455762,1752024674246,-500.0,0.00021918,2]
[370455763,1752024674257,-500.0,0.00021918,2]
[370455764,1752024674267,-500.0,0.00021918,2]
[370455765,1752024674276,-500.0,0.00021918,2]
[370455766,1752024674286,-500.0,0.00021918,2]
[370455767,1752024674296,-500.0,0.00021918,2]
[370455768,1752024674306,-500.0,0.00021918,2]
[370455769,1752024674315,-500.0,0.00021918,2]
[370455771,1752024674324,-576.40966909,0.00021918,2]
[370455773,1752024674334,-500.0,0.00021918,2]
[370455775,1752024674344,-500.0,0.00021918,2]
[370455777,1752024674354,-500.0,0.00021918,2]
[370455779,1752024674364,-500.0,0.00021918,2]
[370455780,1752024674373,-500.0,0.00021918,2]
[370455782,1752024674383,-261.14638905,0.00021918,2]
[370455784,1752024674392,-500.0,0.00021918,2]
[370455786,1752024674402,-500.0,0.00021918,2]
[370455788,1752024674412,-500.0,0.00021918,2]
[370455790,1752024674422,-500.0,0.00021918,2]
[370455792,1752024674433,-500.0,0.00021918,2]
[370455794,1752024674442,-500.0,0.00021918,2]
[370455796,1752024674452,-500.0,0.00021918,2]
[370455798,1752024674461,-5253.8255359,0.00021969,6]
[370455800,1752024674472,-151.0,0.0002199,7]
[370455802,1752024674482,-170.0,0.00022003,2]
[370455804,1752024674492,-2869.0,0.00022038,2]
[370455806,1752024674502,-9662.90921445,0.00022091,2]
[370455808,1752024674512,-151.0,0.00022107,7]
[370455810,1752024674522,-151.0,0.00022107,7]
[370455812,1752024674532,-4944.6,0.0002211,30]
[370455814,1752024674541,-5253.8255359,0.00022176,6]
[370455816,1752024674552,-1950.999999,0.0002218,2]
[370455818,1752024674561,-460.0,0.00022191,2]
[370455820,1752024674571,-151.0,0.00022191,7]
[370455822,1752024674580,-460.0,0.00022191,2]
[370455824,1752024674590,-537.49,0.00022191,2]
[370455826,1752024674599,-460.0,0.00022191,2]
[370455828,1752024674609,-460.0,0.00022191,2]
[370455830,1752024674619,-486.41,0.00022191,2]
[370455832,1752024674628,-460.0,0.00022191,2]
[370455833,1752024674638,-460.0,0.00022191,2]
[370455835,1752024674647,-627.39,0.00022191,2]
[370455837,1752024674657,-460.0,0.00022191,2]
[370455839,1752024674667,-626.6,0.00022191,2]
[370455841,1752024674676,-460.0,0.00022191,2]
[370455843,1752024674686,-526.95,0.00022191,2]
[370455845,1752024674695,-151.0,0.00022191,7]
[370455847,1752024674705,-460.0,0.00022191,2]
[370455849,1752024674715,-517.5,0.00022191,2]
[370455851,1752024674725,-151.0,0.00022191,7]
[370455853,1752024674735,-151.0,0.00022191,7]
[370455855,1752024674744,-297.17035,0.00022191,7]
[370455857,1752024674755,-489.06,0.00022191,2]
[370455859,1752024674765,-1266.12,0.00022191,2]
[370455861,1752024674775,-650.33,0.00022191,2]
[370455863,1752024674785,-460.0,0.00022191,2]
[370455865,1752024674795,-984.36,0.00022191,2]
[370455867,1752024674805,-217.980478,0.00022191,7]
[370455869,1752024674815,-1837.66,0.00022191,2]
[370455871,1752024674824,-460.0,0.00022191,2]
[370455873,1752024674833,-1105.11,0.00022191,2]
[370455875,1752024674842,-217.980478,0.00022191,7]
[370455877,1752024674852,-2659.58,0.00022191,2]
[370455879,1752024674863,-460.0,0.00022191,2]
[370455881,1752024674872,-460.0,0.00022191,2]
[370455882,1752024674883,-460.0,0.00022191,2]
[370455885,1752024674894,-653.37,0.00022191,2]
[370455887,1752024674903,-460.0,0.00022191,2]
[370455888,1752024674913,-916.57,0.00022191,2]
[370455890,1752024674923,-3869.4,0.00022191,2]
[370455892,1752024674934,-460.0,0.00022191,2]
[370455894,1752024674943,-538.58,0.00022191,2]
[370455896,1752024674953,-460.0,0.00022191,2]
[370455898,1752024674962,-575.59,0.00022191,2]
[370455900,1752024674973,-460.0,0.00022191,2]
[370455902,1752024674983,-460.0,0.00022191,2]
[370455904,1752024674993,-1799.14,0.00022191,2]
[370455906,1752024675003,-312.444814,0.00022191,7]
[370455908,1752024675013,-312.444814,0.00022191,7]
[370455910,1752024675022,-655.47,0.00022191,2]
[370455912,1752024675032,-460.0,0.00022191,2]
[370455914,1752024675041,-313.068532,0.00022191,7]
[370455916,1752024675051,-460.0,0.00022191,2]
[370455918,1752024675060,-313.068532,0.00022191,7]
[370455919,1752024675070,-460.0,0.00022191,2]
[370455922,1752024675080,-848.32,0.00022191,2]
[370455923,1752024675091,-558.73,0.00022191,2]
[370455925,1752024675100,-2026.08,0.00022191,2]
[370455927,1752024675110,-402.56039192,0.00022191,2]
[370455929,1752024675120,-710.73,0.00022191,2]
[370455931,1752024675130,-1189.31,0.00022191,2]
[370455933,1752024675141,-460.0,0.00022191,2]
[370455936,1752024675151,-1728.35,0.00022191,2]
[370455938,1752024675161,-460.0,0.00022191,2]
[370455940,1752024675171,-1151.81,0.00022191,2]
[370455942,1752024675183,-619.45,0.00022191,2]
[370455944,1752024675193,-1568.77,0.00022191,2]
[370455946,1752024675202,-460.0,0.00022191,2]
[370455948,1752024675212,-460.0,0.00022191,2]
[370455950,1752024675222,-460.0,0.00022191,2]
[370455952,1752024675232,-1087.45,0.00022191,2]
[370455954,1752024675242,-460.0,0.00022191,2]
[370455956,1752024675251,-460.0,0.00022191,2]
[370455958,1752024675260,-460.0,0.00022191,2]
[370455959,1752024675270,-1151.74,0.00022191,2]
[370455962,1752024675279,-471.95997639,0.00022191,2]
[370455964,1752024675290,-1034.12,0.00022191,2]
[370455966,1752024675299,-460.0,0.00022191,2]
[370455968,1752024675309,-227.80817176,0.00022191,2]
[370455970,1752024675319,-484.37274504,0.00022191,2]
[370455972,1752024675328,-253.69511921,0.00022191,2]
[370455975,1752024675346,-3109.24488079,0.00022191,2]
[370455977,1752024675356,-460.0,0.00022191,2]
[370455978,1752024675364,-501.77,0.00022191,2]
[370455980,1752024675376,-709.81,0.00022191,2]
[370455983,1752024675387,-460.0,0.00022191,2]
[370455985,1752024675397,-201.22703399,0.00022192,2]
[370455987,1752024675406,-168.0,0.00022215,2]
[370455989,1752024675417,-277.0,0.0002226,2]
[370455991,1752024675427,-2869.0,0.0002229,2]
[370455993,1752024675436,-509.02054853,0.00022317,2]
[370455995,1752024675447,-2542.34321145,0.00022383,7]
[370455997,1752024675459,-2201.9922784,0.00022383,7]
[370455999,1752024675473,-509.49004605,0.00022383,7]
[370456002,1752024675485,-1060.13935512,0.0002239,2]
[370456290,1752024762321,501.49,0.0002239,60]
[370456291,1752024783134,358.5777279,0.0002739,120]
[370456293,1752024937407,659.07,0.00027397,120]
[370456296,1752025042728,211.41226896,0.000222,69]
[370456298,1752025190615,2400.0,0.00027397,120]
[370456299,1752025296776,1000.0,0.00027397,120]
[370456300,1752025339435,1279.45,0.00027397,120]
[370456302,1752025516408,524.361224,0.00013699,2]
[370456311,1752025695438,1000.0,0.00027,120]
[370456312,1752025711583,3010.0,0.00027,120]
[370456352,1752025832692,-177.9292346,0.0001829,2]
[370456355,1752025832703,-214.5447018,0.00019078,2]
[370456394,1752025838605,-685.94467834,0.00019078,2]
[370456402,1752025841017,-654.57977133,0.00019078,2]
[370456405,1752025841029,-14.34122268,0.00019078,2]
[370456407,1752025841042,-300.0,0.00019176,2]
[370456409,1752025841051,-113.62893482,0.00019177,2]
[370456412,1752025841077,-386.37106518,0.00019177,2]
[370456414,1752025841087,-268.0620184,0.00019177,2]
[370456416,1752025841099,-231.9379816,0.00019177,2]
[370456418,1752025841109,-500.0,0.00019177,2]
[370456420,1752025841119,-600.90421983,0.00019177,2]
[370456422,1752025841128,-500.0,0.00019177,2]
[370456424,1752025841139,-617.80886629,0.00019177,2]
[370456426,1752025841149,-500.0,0.00019177,2]
[370456428,1752025841158,-500.0,0.00019177,2]
[370456430,1752025841167,-500.0,0.00019177,2]
[370456432,1752025841177,-500.0,0.00019177,2]
[370456434,1752025841186,-500.0,0.00019177,2]
[370456436,1752025841195,-460.0,0.00019178,2]
[370456438,1752025841205,-245.04428866,0.00019178,2]
[370456440,1752025841214,-448.32017791,0.00019178,2]
[370456442,1752025841224,-389.22367199,0.00019178,2]
[370456445,1752025841233,-461.84016934,0.00019178,2]
[370456447,1752025841243,-460.0,0.00019178,2]
[370456449,1752025841252,-460.65253428,0.00019178,2]
[370456451,1752025841261,-461.89055941,0.00019178,2]
[370456453,1752025841270,-169.60434922,0.00019178,2]
[370456455,1752025841279,-359.67517001,0.00019178,2]
[370456458,1752025841300,-101.82944772,0.00019178,2]
[370456460,1752025841309,-462.02905714,0.00019178,2]
[370456462,1752025841318,-408.76972888,0.00019178,2]
[370456464,1752025841328,-242.32258462,0.00019178,2]
[370456466,1752025841338,-497.5818094,0.00019178,2]
[370456468,1752025841347,-463.45688911,0.00019178,2]